fUSD/lending_fUSD_20240125
["ID","MTS","AMOUNT","RATE_DAILY","PERIOD"]
[312672019,1706142669322,-500.0,0.0005041,31]
[312672020,1706142669330,-500.0,0.0005041,31]
[312672021,1706142669339,-500.0,0.0005041,31]
[312672022,1706142669349,-500.0,0.0005041,31]
[312672023,1706142669358,-500.0,0.0005041,31]
[312672024,1706142669367,-500.0,0.0005041,31]
[312672025,1706142669377,-500.0,0.0005041,31]
[312672026,1706142669386,-500.0,0.0005041,31]
[312672027,1706142669395,-781.79,0.0005041,31]
[312672028,1706142669404,-500.0,0.0005041,31]
[312672029,1706142669413,-500.0,0.0005041,31]
[312672030,1706142669422,-500.0,0.0005041,31]
[312672031,1706142669431,-500.0,0.0005041,31]
[312672032,1706142669441,-500.0,0.0005041,31]
[312672033,1706142669450,-500.0,0.0005041,31]
[312672034,1706142669459,-500.0,0.0005041,31]
[312672035,1706142669469,-500.0,0.0005041,31]
[312672036,1706142669478,-1179.82,0.0005041,31]
[312672037,1706142669487,-500.0,0.0005041,31]
[312672038,1706142669496,-3431.79,0.0005041,15]
[312672039,1706142669506,-500.0,0.0005041,31]
[312672040,1706142669515,-568.5,0.0005041,31]
[312672041,1706142669524,-500.0,0.0005041,31]
[312672042,1706142669534,-552.3657483,0.0005041,31]
[312672043,1706142669545,-500.0,0.0005041,31]
[312672044,1706142669554,-1640.43,0.0005041,31]
[312672045,1706142669564,-500.0,0.0005041,31]
[312672046,1706142669573,-577.52581061,0.0005041,31]
[312672047,1706142669583,-500.0,0.0005041,31]
[312672048,1706142669593,-500.0,0.0005041,31]
[312672049,1706142669603,-500.0,0.0005041,31]
[312672050,1706142669613,-500.0,0.0005041,31]
[312672051,1706142669622,-599.18,0.0005041,31]
[312672052,1706142669632,-500.0,0.0005041,31]
[312672053,1706142669641,-500.0,0.0005041,31]
[312672054,1706142669651,-826.78,0.0005041,120]
[312672055,1706142669660,-3450.92,0.0005041,31]
[312672056,1706142669670,-500.0,0.0005041,31]
[312672057,1706142669679,-500.0,0.0005041,31]
[312672058,1706142669688,-500.0,0.0005041,31]
[312672059,1706142669699,-500.0,0.0005041,31]
[312672060,1706142669708,-500.0,0.0005041,31]
[312672061,1706142669718,-500.0,0.0005041,31]
[312672062,1706142669728,-331.87300322,0.0005041,31]
[312672063,1706142669737,-500.0,0.0005041,31]
[312672064,1706142669747,-500.0,0.0005041,31]
[312672065,1706142669756,-383.23976044,0.0005041,31]
[312672066,1706142669766,-500.0,0.0005041,31]
[312672067,1706142669775,-500.0,0.0005041,31]
[312672068,1706142669785,-500.0,0.0005041,31]
[312672069,1706142669797,-549.31,0.0005041,31]
[312672070,1706142669810,-500.0,0.0005041,31]
[312672071,1706142669819,-500.0,0.0005041,31]
[312672072,1706142669829,-500.0,0.0005041,31]
[312672073,1706142669838,-951.5,0.0005041,31]
[312672074,1706142669849,-500.0,0.0005041,31]
[312672075,1706142669858,-500.0,0.0005041,31]
[312672076,1706142669867,-500.0,0.0005041,31]
[312672077,1706142669878,-388.16202862,0.0005041,31]
[312672078,1706142669888,-506.14,0.0005041,31]
[312672079,1706142669897,-500.0,0.0005041,31]
[312672080,1706142669907,-500.0,0.0005041,31]
[312672081,1706142669917,-500.0,0.0005041,31]
[312672082,1706142669927,-500.0,0.0005041,31]
[312672083,1706142669937,-500.0,0.0005041,31]
[312672084,1706142669946,-500.0,0.0005041,31]
[312672085,1706142669957,-500.0,0.0005041,31]
[312672086,1706142669967,-500.0,0.0005041,31]
[312672087,1706142669976,-500.0,0.0005041,31]
[312672088,1706142669985,-500.0,0.0005041,31]
[312672089,1706142669994,-500.0,0.0005041,31]
[312672090,1706142670004,-500.0,0.0005041,31]
[312672091,1706142670013,-500.0,0.0005041,31]
[312672092,1706142670023,-500.0,0.0005041,31]
[312672093,1706142670033,-500.0,0.0005041,31]
[312672094,1706142670042,-586.01,0.0005041,31]
[312672095,1706142670053,-610.51,0.0005041,2]
[312672096,1706142670063,-500.0,0.0005041,31]
[312672097,1706142670073,-500.0,0.0005041,31]
[312672098,1706142670082,-1518.82,0.0005041,2]
[312672099,1706142670092,-787.32,0.0005041,31]
[312672100,1706142670102,-500.0,0.0005041,31]
[312672101,1706142670112,-500.0,0.0005041,31]
[312672102,1706142670122,-500.0,0.0005041,31]
[312672103,1706142670132,-500.0,0.0005041,31]
[312672104,1706142670141,-696.9,0.0005041,31]
[312672105,1706142670150,-500.0,0.0005041,31]
[312672106,1706142670160,-500.0,0.0005041,120]
[312672107,1706142670169,-500.0,0.0005041,31]
[312672108,1706142670179,-839.16,0.0005041,31]
[312672109,1706142670188,-949.05,0.0005041,31]
[312672110,1706142670198,-1090.8,0.0005041,7]
[312672111,1706142670207,-500.0,0.0005041,31]
[312672112,1706142670217,-500.0,0.0005041,31]
[312672113,1706142670227,-500.0,0.0005041,31]
[312672114,1706142670237,-500.0,0.0005041,31]
[312672115,1706142670246,-500.0,0.0005041,31]
[312672116,1706142670255,-500.0,0.0005041,31]
[312672117,1706142670265,-500.0,0.0005041,31]
[312672118,1706142670274,-500.0,0.0005041,31]
[312672119,1706142670283,-500.0,0.0005041,31]
[312672120,1706142670292,-500.0,0.0005041,31]
[312672121,1706142670303,-500.0,0.0005041,31]
[312672122,1706142670313,-500.0,0.0005041,31]
[312672123,1706142670324,-500.0,0.0005041,31]
[312672124,1706142670334,-167.10165736,0.0005041,31]
[312672125,1706142670345,-500.0,0.0005041,31]
[312672126,1706142670354,-500.0,0.0005041,31]
[312672127,1706142670365,-500.0,0.0005041,31]
[312672128,1706142670374,-500.0,0.0005041,31]
[312672129,1706142670384,-500.0,0.0005041,31]
[312672130,1706142670393,-500.0,0.0005041,31]
[312672131,1706142670403,-500.0,0.0005041,31]
[312672132,1706142670412,-500.0,0.0005041,31]
[312672133,1706142670422,-500.0,0.0005041,31]
[312672134,1706142670431,-500.0,0.0005041,31]
[312672135,1706142670441,-500.0,0.0005041,31]
[312672136,1706142670450,-569.39,0.0005041,31]
[312672137,1706142670460,-500.0,0.0005041,31]
[312672138,1706142670471,-500.0,0.0005041,31]
[312672139,1706142670481,-500.0,0.0005041,31]
[312672140,1706142670490,-500.0,0.0005041,31]
[312672141,1706142670500,-500.0,0.0005041,31]
[312672142,1706142670509,-500.0,0.0005041,31]
[312672143,1706142670519,-500.0,0.0005041,31]
[312672144,1706142670528,-500.0,0.0005041,31]
[312672145,1706142670538,-500.0,0.0005041,31]
[312672146,1706142670549,-500.0,0.0005041,31]
[312672147,1706142670560,-500.0,0.0005041,31]
[312672148,1706142670569,-500.0,0.0005041,31]
[312672149,1706142670580,-500.0,0.0005041,31]
[312672150,1706142670589,-500.0,0.0005041,31]
[312672151,1706142670599,-500.0,0.0005041,31]
[312672152,1706142670608,-322.26139881,0.0005041,31]
[312672153,1706142670618,-500.0,0.0005041,31]
[312672154,1706142670628,-500.0,0.0005041,31]
[312672155,1706142670637,-500.0,0.0005041,31]
[312672156,1706142670647,-500.0,0.0005041,31]
[312672157,1706142670657,-1012.49,0.0005041,31]
[312672158,1706142670667,-500.0,0.0005041,31]
[312672159,1706142670677,-500.0,0.0005041,31]
[312672160,1706142670687,-500.0,0.0005041,31]
[312672161,1706142670697,-500.0,0.0005041,31]
[312672162,1706142670707,-500.0,0.0005041,31]
[312672163,1706142670717,-500.0,0.0005041,31]
[312672164,1706142670728,-573.12850272,0.0005041,31]
[312672165,1706142670739,-500.0,0.0005041,31]
[312672166,1706142670753,-500.0,0.0005041,31]
[312672167,1706142670763,-500.0,0.0005041,31]
[312672168,1706142670773,-799.68,0.0005041,31]
[312672169,1706142670782,-500.0,0.0005041,31]
[312672170,1706142670798,-500.0,0.0005041,31]
[312672171,1706142670808,-500.0,0.0005041,31]
[312672172,1706142670818,-500.0,0.0005041,31]
[312672173,1706142670830,-500.0,0.0005041,31]
[312672174,1706142670839,-500.0,0.0005041,31]
[312672175,1706142670849,-502.75,0.0005041,31]
[312672176,1706142670859,-543.8,0.0005041,31]
[312672177,1706142670870,-500.0,0.0005041,31]
[312672178,1706142670880,-500.0,0.0005041,31]
[312672179,1706142670890,-500.0,0.0005041,31]
[312672180,1706142670900,-986.07,0.0005041,31]
[312672181,1706142670910,-500.0,0.0005041,31]
[312672182,1706142670919,-500.0,0.0005041,31]
[312672183,1706142670929,-500.0,0.0005041,31]
[312672184,1706142670939,-500.0,0.0005041,31]
[312672185,1706142670949,-500.0,0.0005041,31]
[312672186,1706142670958,-1153.66,0.0005041,31]
[312672187,1706142670968,-500.0,0.0005041,31]
[312672188,1706142670978,-516.65,0.0005041,31]
[312672189,1706142670988,-500.0,0.0005041,31]
[312672190,1706142670997,-500.0,0.0005041,31]
[312672191,1706142671008,-1241.77,0.0005041,31]
[312672192,1706142671017,-500.0,0.0005041,31]
[312672193,1706142671027,-500.0,0.0005041,31]
[312672194,1706142671037,-500.0,0.0005041,31]
[312672195,1706142671048,-500.0,0.0005041,31]
[312672196,1706142671058,-500.0,0.0005041,31]
[312672197,1706142671070,-500.0,0.0005041,31]
[312672198,1706142671079,-500.0,0.0005041,31]
[312672199,1706142671089,-653.39,0.0005041,31]
[312672200,1706142671099,-545.99256738,0.0005041,31]
[312672201,1706142671109,-500.0,0.0005041,31]
[312672202,1706142671119,-836.07,0.0005041,31]
[312672203,1706142671130,-250.0,0.0005041,31]
[312672204,1706142671139,-756.21,0.0005041,31]
[312672205,1706142671149,-515.25,0.0005041,31]
[312672206,1706142671163,-500.0,0.0005041,31]
[312672207,1706142671173,-1013.31,0.0005041,31]
[312672208,1706142671183,-500.0,0.0005041,31]
[312672209,1706142671193,-528.69,0.0005041,31]
[312672210,1706142671202,-616.32,0.0005041,31]
[312672211,1706142671212,-500.0,0.0005041,31]
[312672212,1706142671221,-956.92,0.0005041,31]
[312672213,1706142671232,-500.0,0.0005041,31]
[312672214,1706142671241,-500.0,0.0005041,31]
[312672215,1706142671251,-186.84,0.0005041,31]
[312672216,1706142671262,-500.0,0.0005041,31]
[312672217,1706142671273,-998.0,0.0005041,31]
[312672218,1706142671282,-500.0,0.0005041,31]
[312672219,1706142671292,-682.58,0.0005041,31]
[312672220,1706142671501,-500.0,0.0005041,31]
[312672221,1706142671511,-4855.5,0.0005041,31]
[312672222,1706142671522,-500.0,0.0005041,31]
[312672223,1706142671533,-500.0,0.0005041,31]
[312672224,1706142671544,-500.0,0.0005041,31]
[312672225,1706142671554,-2993.87,0.0005041,31]
[312672226,1706142671564,-500.0,0.0005041,31]
[312672227,1706142671574,-500.0,0.0005041,31]
[312672228,1706142671584,-500.0,0.0005041,31]
[312672229,1706142671596,-5084.18,0.0005041,5]
[312672230,1706142671605,-900.81,0.0005041,31]
[312672231,1706142671614,-1768.63,0.0005041,31]
[312672232,1706142671624,-531.92,0.0005041,31]
[312672233,1706142671633,-1000.0,0.0005041,7]
[312672234,1706142671643,-500.0,0.0005041,31]
[312672235,1706142671653,-500.0,0.0005041,31]
[312672236,1706142671663,-500.0,0.0005041,31]
[312672237,1706142671672,-500.0,0.0005041,31]
[312672238,1706142671682,-801.09,0.0005041,31]
[312672239,1706142671691,-500.0,0.0005041,31]
[312672240,1706142671701,-500.0,0.0005041,31]
[312672241,1706142671710,-500.0,0.0005041,31]
[312672242,1706142671719,-524.49,0.0005041,31]
[312672243,1706142671728,-500.0,0.0005041,31]
[312672244,1706142671738,-544.16,0.0005041,31]
[312672245,1706142671747,-500.0,0.0005041,31]
[312672246,1706142671757,-500.0,0.0005041,31]
[312672247,1706142671767,-500.0,0.0005041,31]
[312672248,1706142671777,-500.0,0.0005041,31]
[312672249,1706142671787,-2294.01,0.0005041,31]
[312672250,1706142671800,-500.0,0.0005041,31]
[312672251,1706142671813,-500.0,0.0005041,31]
[312672252,1706142671824,-500.0,0.0005041,31]
[312672253,1706142671834,-671.26,0.0005041,31]
[312672254,1706142671843,-583.12,0.0005041,31]
[312672255,1706142671854,-830.43,0.0005041,31]
[312672256,1706142671864,-652.75,0.0005041,31]
[312672257,1706142671874,-2589.2,0.0005041,31]
[312672258,1706142671885,-556.8,0.0005041,31]
[312672259,1706142671896,-500.0,0.0005041,31]
[312672260,1706142671905,-500.0,0.0005041,31]
[312672261,1706142671915,-545.42,0.0005041,31]
[312672262,1706142671927,-541.32,0.0005041,31]
[312672263,1706142671937,-500.0,0.0005041,31]
[312672264,1706142671947,-545.58,0.0005041,31]
[312672265,1706142671958,-500.0,0.0005041,31]
[312672266,1706142671970,-659.09,0.0005041,31]
[312672267,1706142671980,-586.96,0.0005041,31]
[312672268,1706142671989,-2351.31,0.0005041,31]
[312672269,1706142671999,-1206.46,0.0005041,31]
[312672270,1706142672008,-500.0,0.0005041,31]
[312672271,1706142672017,-583.57,0.0005041,31]
[312672272,1706142672034,-524.43,0.0005041,31]
[312672273,1706142672049,-500.0,0.0005041,31]
[312672274,1706142672059,-596.67,0.0005041,31]
[312672275,1706142672069,-500.0,0.0005041,30]
[312672276,1706142672079,-966.39,0.0005041,31]
[312672277,1706142672089,-612.43,0.0005041,31]
[312672278,1706142672099,-500.0,0.0005041,31]
[312672279,1706142672109,-500.0,0.0005041,31]
[312672280,1706142672119,-683.16,0.0005041,31]
[312672281,1706142672129,-500.0,0.0005041,31]
[312672282,1706142672139,-500.0,0.0005041,31]
[312672283,1706142672150,-710.01,0.0005041,31]
[312672284,1706142672160,-1407.74,0.0005041,31]
[312672285,1706142672170,-500.0,0.0005041,31]
[312672286,1706142672179,-5543.02,0.0005041,31]
[312672287,1706142672190,-500.0,0.0005041,31]
[312672288,1706142672199,-500.0,0.0005041,31]
[312672289,1706142672209,-500.0,0.0005041,31]
[312672290,1706142672219,-2066.55,0.0005041,31]
[312672291,1706142672229,-620.76,0.0005041,31]
[312672292,1706142672239,-1226.31,0.0005041,31]
[312672293,1706142672249,-1016.7,0.0005041,31]
[312672294,1706142672259,-563.82,0.0005041,31]
[312672295,1706142672269,-500.0,0.0005041,31]
[312672296,1706142672279,-552.79,0.0005041,31]
[312672297,1706142672289,-742.38,0.0005041,31]
[312672298,1706142672301,-500.0,0.0005041,31]
[312672299,1706142672312,-547.01,0.0005041,31]
[312672300,1706142672323,-500.0,0.0005041,31]
[312672301,1706142672334,-3013.17,0.0005041,31]
[312672302,1706142672344,-514.66,0.0005041,31]
[312672303,1706142672354,-540.87,0.0005041,31]
[312672304,1706142672365,-712.54,0.0005041,31]
[312672305,1706142672375,-778.86,0.0005041,31]
[312672306,1706142672385,-2280.94,0.0005041,31]
[312672307,1706142672396,-950.67,0.0005041,31]
[312672308,1706142672406,-500.0,0.0005041,31]
[312672309,1706142672416,-500.0,0.0005041,31]
[312672310,1706142672426,-500.0,0.0005041,31]
[312672311,1706142672436,-500.0,0.0005041,31]
[312672312,1706142672446,-500.0,0.0005041,31]
[312672313,1706142672456,-500.0,0.0005041,31]
[312672314,1706142672466,-1663.46,0.0005041,31]
[312672315,1706142672476,-500.0,0.0005041,31]
[312672316,1706142672485,-649.21,0.0005041,31]
[312672317,1706142672495,-787.85,0.0005041,31]
[312672318,1706142672505,-1247.69,0.0005041,31]
[312672319,1706142672515,-1073.61,0.0005041,31]
[312672320,1706142672525,-500.0,0.0005041,31]
[312672321,1706142672534,-500.0,0.0005041,31]
[312672322,1706142672544,-500.0,0.0005041,31]
[312672323,1706142672560,-500.0,0.0005041,31]
[312672324,1706142672570,-500.0,0.0005041,31]
[312672325,1706142672579,-1265.65,0.0005041,31]
[312672326,1706142672589,-618.27,0.0005041,31]
[312672327,1706142672600,-500.0,0.0005041,31]
[312672328,1706142672610,-500.0,0.0005041,31]
[312672329,1706142672620,-3061.04,0.0005041,31]
[312672330,1706142672630,-2426.6,0.0005041,31]
[312672331,1706142672639,-500.0,0.0005041,31]
[312672332,1706142672649,-1315.35,0.0005041,31]
[312672333,1706142672659,-226.99417359,0.0005041,31]
[312672334,1706142672669,-700.1,0.0005041,31]
[312672335,1706142672678,-706.67,0.0005041,31]
[312672336,1706142672687,-500.0,0.0005041,31]
[312672337,1706142672697,-500.0,0.0005041,31]
[312672338,1706142672706,-660.57,0.0005041,31]
[312672339,1706142672716,-500.0,0.0005041,31]
[312672340,1706142672726,-733.61,0.0005041,31]
[312672341,1706142672736,-860.59,0.0005041,31]
[312672342,1706142672746,-181.85197506,0.0005041,31]
[312672343,1706142672756,-1000.0,0.0005041,7]
[312672344,1706142672766,-553.53,0.0005041,31]
[312672345,1706142672775,-605.74,0.0005041,31]
[312672346,1706142672786,-501.79,0.0005041,31]
[312672347,1706142672802,-500.0,0.0005041,31]
[312672348,1706142672812,-500.0,0.0005041,31]
[312672349,1706142672822,-564.19,0.0005041,31]
[312672350,1706142672831,-500.0,0.0005041,31]
[312672351,1706142672842,-740.74,0.0005041,31]
[312672352,1706142672851,-500.0,0.0005041,31]
[312672353,1706142672860,-1295.4,0.0005041,31]
[312672354,1706142672870,-519.74,0.0005041,31]
[312672355,1706142672879,-500.0,0.0005041,31]
[312672356,1706142672890,-500.0,0.0005041,31]
[312672357,1706142672899,-500.0,0.0005041,31]
[312672358,1706142672909,-649.59,0.0005041,31]
[312672359,1706142672918,-537.1,0.0005041,31]
[312672360,1706142672927,-500.0,0.0005041,31]
[312672361,1706142672936,-599.29,0.0005041,31]
[312672362,1706142672945,-765.11,0.0005041,31]
[312672363,1706142672955,-3710.41,0.0005041,31]
[312672364,1706142672964,-500.0,0.0005041,31]
[312672365,1706142672974,-500.0,0.0005041,31]
[312672366,1706142672984,-500.0,0.0005041,31]
[312672367,1706142672993,-1451.54,0.0005041,31]
[312672368,1706142673003,-500.0,0.0005041,31]
[312672369,1706142673012,-737.72,0.0005041,31]
[312672370,1706142673022,-658.3,0.0005041,31]
[312672371,1706142673032,-500.0,0.0005041,31]
[312672372,1706142673041,-500.0,0.0005041,31]
[312672373,1706142673053,-5000.0,0.0005041,14]
[312672374,1706142673062,-500.0,0.0005041,31]
[312672375,1706142673071,-748.16,0.0005041,31]
[312672376,1706142673080,-536.66,0.0005041,31]
[312672377,1706142673090,-500.0,0.0005041,31]
[312672378,1706142673099,-527.19903318,0.0005041,31]
[312672379,1706142673109,-655.7,0.0005041,31]
[312672380,1706142673118,-937.73,0.0005041,2]
[312672381,1706142673127,-678.69,0.0005041,31]
[312672382,1706142673137,-500.0,0.0005041,31]
[312672383,1706142673146,-764.66,0.0005041,31]
[312672384,1706142673155,-500.0,0.0005041,31]
[312672385,1706142673165,-673.27,0.0005041,31]
[312672386,1706142673175,-797.85,0.0005041,31]
[312672387,1706142673185,-820.44,0.0005041,31]
[312672388,1706142673194,-500.0,0.0005041,31]
[312672389,1706142673203,-500.0,0.0005041,31]
[312672390,1706142673213,-500.0,0.0005041,31]
[312672391,1706142673222,-500.0,0.0005041,31]
[312672392,1706142673231,-618.86,0.0005041,31]
[312672393,1706142673240,-515.5,0.0005041,31]
[312672394,1706142673250,-500.0,0.0005041,31]
[312672395,1706142673259,-629.99247385,0.0005041,31]
[312672396,1706142673269,-792.67,0.0005041,31]
[312672397,1706142673279,-1129.79,0.0005041,31]
[312672398,1706142673288,-717.84,0.0005041,31]
[312672399,1706142673302,-500.0,0.0005041,31]
[312672400,1706142673311,-510.96,0.0005041,31]
[312672401,1706142673322,-500.0,0.0005041,31]
[312672402,1706142673332,-600.26,0.0005041,31]
[312672403,1706142673342,-269.54607105,0.0005041,31]
[312672404,1706142673352,-500.0,0.0005041,31]
[312672405,1706142673362,-689.9,0.0005041,31]
[312672406,1706142673371,-500.0,0.0005041,31]
[312672407,1706142673380,-594.93,0.0005041,2]
[312672408,1706142673390,-738.6,0.0005041,31]
[312672409,1706142673399,-724.18,0.0005041,31]
[312672410,1706142673410,-757.86,0.0005041,2]
[312672411,1706142673419,-754.82,0.0005041,31]
[312672412,1706142673429,-1187.72,0.0005041,31]
[312672413,1706142673438,-500.0,0.0005041,31]
[312672414,1706142673448,-500.0,0.0005041,31]
[312672415,1706142673457,-500.0,0.0005041,31]
[312672416,1706142673466,-500.0,0.0005041,31]
[312672417,1706142673477,-1281.32,0.0005041,31]
[312672418,1706142673486,-2728.94,0.0005041,31]
[312672419,1706142673495,-557.24,0.0005041,31]
[312672420,1706142673516,-151.0,0.0005041,14]
[312672421,1706142673534,-293.259654,0.0005041,14]
[312672422,1706142673555,-1815.98,0.0005041,5]
[312672423,1706142673570,-150.0,0.00050469,2]
[312672424,1706142673586,-212.0,0.0005059,2]
[312672425,1706142673603,-2205.37187775,0.00050681,2]
[312672426,1706142673619,-150.0,0.00050683,10]
[312672427,1706142673634,-500.0,0.00050684,31]
[312672428,1706142673647,-500.0,0.00050684,31]
[312672429,1706142673663,-500.0,0.00050684,31]
[312672430,1706142673678,-500.0,0.00050684,31]
[312672431,1706142673692,-500.0,0.00050684,31]
[312672432,1706142673708,-595.87,0.00050684,31]
[312672433,1706142673721,-500.0,0.00050684,31]
[312672434,1706142673732,-500.0,0.00050684,31]
[312672435,1706142673748,-500.0,0.00050684,31]
[312672436,1706142673764,-545.8,0.00050684,31]
[312672437,1706142673780,-500.0,0.00050684,31]
[312672438,1706142673793,-607.94319429,0.00050684,31]
[312672439,1706142673812,-500.0,0.00050684,31]
[312672440,1706142673826,-500.0,0.00050684,31]
[312672441,1706142673843,-500.0,0.00050684,31]
[312672442,1706142673858,-500.0,0.00050684,31]
[312672443,1706142673870,-360.994534,0.00050684,31]
[312672444,1706142673881,-500.0,0.00050684,31]
[312672445,1706142673895,-500.0,0.00050684,31]
[312672446,1706142673909,-500.0,0.00050684,31]
[312672447,1706142673923,-500.000001,0.00050684,31]
[312672448,1706142673935,-500.0,0.00050684,31]
[312672449,1706142673946,-500.0,0.00050684,31]
[312672450,1706142673960,-500.0,0.00050684,31]
[312672451,1706142673972,-500.0,0.00050684,31]
[312672452,1706142673985,-500.0,0.00050684,31]
[312672453,1706142673998,-500.0,0.00050684,31]
[312672454,1706142674010,-500.0,0.00050684,31]
[312672455,1706142674024,-500.0,0.00050684,31]
[312672456,1706142674036,-500.0,0.00050684,31]
[312672457,1706142674050,-500.0,0.00050684,31]
[312672458,1706142674063,-500.0,0.00050684,31]
[312672459,1706142674076,-500.0,0.00050684,31]
[312672460,1706142674088,-551.20100181,0.00050684,31]
[312672461,1706142674100,-500.0,0.00050684,31]
[312672462,1706142674112,-500.0,0.00050684,31]
[312672463,1706142674125,-500.0,0.00050684,31]
[312672464,1706142674137,-500.0,0.00050684,31]
[312672465,1706142674151,-500.0,0.00050684,31]
[312672466,1706142674164,-500.0,0.00050684,31]
[312672467,1706142674177,-500.0,0.00050684,31]
[312672468,1706142674189,-500.0,0.00050684,31]
[312672469,1706142674202,-500.0,0.00050684,31]
[312672470,1706142674215,-500.0,0.00050684,31]
[312672471,1706142674228,-500.0,0.00050684,31]
[312672472,1706142674240,-266.07985987,0.00050684,31]
[312672473,1706142674252,-500.0,0.00050684,31]
[312672474,1706142674265,-500.0,0.00050684,31]
[312672475,1706142674277,-500.0,0.00050684,31]
[312672476,1706142674289,-500.0,0.00050684,31]
[312672477,1706142674302,-500.0,0.00050684,31]
[312672478,1706142674313,-500.0,0.00050684,31]
[312672479,1706142674326,-500.0,0.00050684,31]
[312672480,1706142674338,-500.0,0.00050684,20]
[312672481,1706142674349,-500.0,0.00050684,31]
[312672482,1706142674361,-500.0,0.00050684,31]
[312672483,1706142674373,-500.0,0.00050684,31]
[312672484,1706142674385,-500.0,0.00050684,31]
[312672485,1706142674398,-500.0,0.00050684,31]
[312672486,1706142674410,-325.03909589,0.00050684,31]
[312672487,1706142674421,-500.0,0.00050684,31]
[312672488,1706142674433,-500.0,0.00050684,14]
[312672489,1706142674446,-544.91001914,0.00050684,31]
[312672490,1706142674458,-500.0,0.00050684,31]
[312672491,1706142674470,-500.0,0.00050684,31]
[312672492,1706142674482,-500.0,0.00050684,31]
[312672493,1706142674494,-500.0,0.00050684,31]
[312672494,1706142674507,-430.24682,0.00050684,31]
[312672495,1706142674519,-500.0,0.00050684,31]
[312672496,1706142674531,-305.90772419,0.00050684,31]
[312672497,1706142674543,-500.0,0.00050684,31]
[312672498,1706142674556,-500.0,0.00050684,31]
[312672499,1706142674568,-302.42549476,0.00050684,31]
[312672500,1706142674580,-500.0,0.00050684,31]
[312672501,1706142674592,-500.0,0.00050684,31]
[312672502,1706142674606,-1202.05,0.00050684,31]
[312672503,1706142674621,-546.04,0.00050684,31]
[312672504,1706142674638,-500.0,0.00050684,31]
[312672505,1706142674657,-500.0,0.00050684,31]
[312672506,1706142674675,-500.0,0.00050684,31]
[312672507,1706142674691,-689.23,0.00050684,2]
[312672508,1706142674713,-839.27,0.00050684,2]
[312672509,1706142674734,-521.2883726,0.00050684,31]
[312672510,1706142674756,-500.0,0.00050684,31]
[312672511,1706142674778,-500.0,0.00050684,31]
[312672512,1706142674801,-500.0,0.00050684,31]
[312672513,1706142674823,-521.91604347,0.00050684,31]
[312672514,1706142674845,-1213.27,0.00050684,31]
[312672515,1706142674867,-500.0,0.00050684,31]
[312672516,1706142674891,-500.0,0.00050684,31]
[312672517,1706142674912,-209.06045101,0.00050684,31]
[312672518,1706142674934,-689.7,0.00050684,31]